bitfinex/quotes_SOLUSD_20240621
["timestamp","ask_amount","ask_price","bid_price","bid_amount"]
[1718980494551,6.0304,132.66,132.61,6.0325]
[1718980494742,22.418,132.68,132.59,15.084]
[1718980494943,6.0308,132.66,132.61,6.0324]
[1718980495138,6.03,132.67,132.63,6.0317]
[1718980495367,6.03,132.67,132.62,6.032]
[1718980495574,6.031,132.65,132.6,6.0327]
[1718980495871,6.031,132.65,132.6,6.0331]
[1718980496078,15.0759,132.67,132.59,6.0336]
[1718980496268,6.0315,132.64,132.59,6.0336]
[1718980496445,6.0319,132.63,132.58,6.0339]
[1718980496960,6.0322,132.62,132.58,6.0339]
[1718980497172,12.0438,132.61,132.56,6.0348]
[1718980497344,28.1002,132.61,132.56,6.0348]
[1718980497745,22.0675,132.61,132.57,6.0344]
[1718980498150,22.0675,132.61,132.52,15.0918]
[1718980498354,6.034,132.59,132.54,6.0358]
[1718980498960,6.0341,132.58,132.53,6.0362]
[1718980499270,6.0338,132.59,132.54,6.0356]
[1718980499650,51.0333,132.6,132.56,6.0349]
[1718980499950,22.0675,132.61,132.57,15.086]
[1718980500270,6.0333,132.6,132.55,6.0354]
[1718980500470,22.0675,132.61,132.51,15.0921]
[1718980500664,6.0338,132.59,132.54,6.0356]
[1718980500858,6.0332,132.6,132.55,6.0352]
[1718980501159,22.0675,132.61,132.57,6.0344]
[1718980501462,22.0675,132.61,132.55,6.0353]
[1718980501667,6.0333,132.6,132.55,6.0353]
[1718980501970,6.0337,132.59,132.53,15.0901]
[1718980502190,6.0343,132.58,132.53,6.0362]
[1718980502479,6.0343,132.58,132.54,6.0358]
[1718980502973,6.0345,132.57,132.53,6.0361]
[1718980503275,22.0675,132.61,132.5,16.9370225]
[1718980503495,6.0365,132.53,132.5,1.8438225]
[1718980503887,22.0124,132.54,132.5,1.8438225]
[1718980504087,15.9765,132.54,132.52,6.0363]
[1718980504772,6.3346,132.55,132.5,1.8438225]
[1718980504989,6.3346,132.55,132.52,6.0366]
[1718980505191,6.3346,132.55,132.5,1.8438225]
[1718980505192,6.3346,132.55,132.51,6.037]
[1718980505495,6.3346,132.55,132.52,6.0365]
[1718980505878,6.3346,132.55,132.51,6.0372]
[1718980506270,12.3702,132.55,132.5,7.8813225]
[1718980506472,6.3346,132.55,132.5,1.8438225]
[1718980506670,6.0361,132.54,132.5,1.8438225]
[1718980506972,6.0361,132.54,132.5,7.8815225]
[1718980507192,12.3702,132.55,132.5,7.8815225]
[1718980507466,6.3346,132.55,132.52,6.0365]
[1718980507670,6.3346,132.55,132.51,6.037]
[1718980507866,6.3346,132.55,132.52,6.0366]
[1718980508097,6.3346,132.55,132.5,1.8438225]
[1718980508306,6.0364,132.53,132.5,1.8438225]
[1718980508713,6.0372,132.51,132.5,1.8438225]
[1718980509000,6.0385,132.49,132.41,15.1045]
[1718980509173,16.2278,132.51,132.44,6.0404]
[1718980509379,6.0384,132.49,132.44,6.0404]
[1718980509695,6.0384,132.49,132.45,6.0399]
[1718980509893,6.0379,132.5,132.45,6.0399]
[1718980510098,6.0379,132.5,132.46,6.0394]
[1718980510292,16.2278,132.51,132.46,6.0394]
[1718980510293,22.2652,132.51,132.46,6.0394]
[1718980510685,16.2278,132.51,132.45,6.0398]
[1718980510991,16.2278,132.51,132.43,15.1015]
[1718980511196,16.2278,132.51,132.46,6.0393]
[1718980511493,16.2278,132.51,132.39,31.1255]
[1718980511699,6.0382,132.49,132.41,15.1043]
[1718980511893,45.0,132.5,132.44,6.0401]
[1718980512101,6.0384,132.49,132.41,15.1043]
[1718980512310,6.0384,132.49,132.44,6.04]
[1718980512512,45.0,132.5,132.41,15.1043]
[1718980512816,45.0,132.5,132.39,16.0357]
[1718980512817,6.0386,132.48,132.43,6.0407]
[1718980512982,6.0386,132.48,132.41,15.1037]
[1718980513186,6.0386,132.48,132.43,6.0405]
[1718980513699,6.4468,132.5,132.42,100.0]
[1718980514009,23.1316,132.59,132.44,100.0]
[1718980514301,6.0351,132.56,132.51,6.037]
[1718980514510,6.035,132.56,132.51,6.0371]
[1718980514687,6.035,132.56,132.51,6.037]
[1718980515005,23.1316,132.59,132.49,100.0]
[1718980515206,6.6643,132.59,132.51,100.0]
[1718980515508,6.6643,132.62,132.53,100.0]
[1718980515683,6.0316,132.64,132.59,6.0334]
[1718980516003,6.6643,132.66,132.54,26.2852]
[1718980516004,21.7405,132.66,132.54,21.204]
[1718980516181,6.0319,132.63,132.58,6.0337]
[1718980516385,6.6643,132.66,132.55,100.17]
[1718980516599,6.0327,132.62,132.56,6.0348]
[1718980516809,6.6643,132.66,132.52,15.0909]
[1718980516991,6.0324,132.62,132.57,6.0342]
[1718980517377,6.0334,132.6,132.54,6.0355]
[1718980517593,15.081,132.62,132.51,6.4125]
[1718980517882,6.0332,132.6,132.55,6.0353]
[1718980518087,6.0332,132.6,132.52,0.17]
[1718980518088,6.0313,132.65,132.59,6.0331]
[1718980518318,6.6643,132.66,132.56,15.0872]
[1718980518517,6.6643,132.66,132.57,15.2552]
[1718980518712,12.695,132.66,132.61,6.0326]
[1718980518900,12.695,132.66,132.57,15.2552]
[1718980518901,6.6643,132.66,132.57,15.2552]
[1718980519098,6.6643,132.66,132.56,100.0]
[1718980519410,6.6643,132.66,132.57,15.2552]
[1718980519922,6.0309,132.65,132.6,6.0329]
[1718980520299,6.6643,132.66,132.62,6.0321]
[1718980520802,6.031,132.65,132.6,6.033]
[1718980521198,6.6643,132.66,132.55,30.2229]
[1718980521402,20.0,132.65,132.52,30.6845]
[1718980521610,6.0292,132.59,132.48,22.6942]
[1718980521816,6.0352,132.56,132.51,6.0369]
[1718980522012,21.1138,132.59,132.48,37.7898]
[1718980522276,6.0352,132.56,132.51,6.037]
[1718980522517,51.0342,132.58,132.53,6.0361]
[1718980522725,6.0346,132.57,132.52,6.0366]
[1718980522892,45.0,132.58,132.48,16.5799]
[1718980523097,45.0,132.58,132.54,6.0358]
[1718980523492,45.0,132.58,132.51,15.0922]
[1718980523720,45.0,132.58,132.54,6.0358]
[1718980523920,6.0292,132.59,132.51,15.0922]
[1718980524128,6.0292,132.59,132.55,6.0351]
[1718980524428,6.0292,132.59,132.52,15.091]
[1718980524596,12.0628,132.59,132.54,6.0356]
[1718980525622,6.0292,132.59,132.55,6.0353]
[1718980526100,6.0292,132.59,132.56,6.0349]
[1718980526519,6.0477,132.63,132.52,100.0]
[1718980526731,6.0477,132.63,132.6,6.0329]
[1718980526895,31.6255,132.68,132.61,6.0324]
[1718980527091,6.0311,132.65,132.6,6.0331]
[1718980527295,6.032,132.63,132.58,6.0338]
[1718980527526,6.3593,132.67,132.57,6.0343]
[1718980527702,6.0329,132.61,132.56,6.0347]
[1718980528228,6.3593,132.67,132.54,100.0]
[1718980528440,6.3593,132.67,132.58,6.0339]
[1718980528441,6.0319,132.63,132.58,6.0339]
[1718980528839,6.0343,132.58,132.53,6.036]
[1718980529158,6.0341,132.58,132.51,15.092]
[1718980529440,6.0352,132.56,132.51,6.0368]
[1718980529772,21.574,132.59,132.52,6.0367]
[1718980529951,6.0346,132.57,132.52,6.0366]
[1718980530232,6.0354,132.55,132.5,6.0375]
[1718980530426,6.035,132.56,132.51,6.0372]
[1718980530736,51.0342,132.58,132.53,6.0361]
[1718980530919,12.5226,132.59,132.55,6.0354]
[1718980531120,12.5226,132.59,132.5,130.1879]
[1718980531121,6.4888,132.59,132.5,130.1879]
[1718980531449,21.5237,132.67,132.61,6.0324]
[1718980531606,6.0307,132.66,132.61,6.0326]
[1718980531811,6.031,132.65,132.6,6.0329]
[1718980532022,6.0304,132.66,132.58,15.0843]
[1718980532333,6.0309,132.65,132.6,6.0329]
[1718980532629,27.5537,132.67,132.62,6.032]
[1718980532942,6.4047,132.67,132.63,6.0317]
[1718980533305,6.4047,132.67,132.58,6.034]
[1718980533540,35.0766,132.66,132.55,15.0886]
[1718980533730,35.0766,132.66,132.57,6.0342]
[1718980533731,6.0322,132.62,132.57,6.0342]
[1718980533922,6.032,132.63,132.58,6.0339]
[1718980534119,6.0314,132.64,132.56,15.0865]
[1718980534324,6.0314,132.64,132.54,0.17]
[1718980534325,6.4047,132.67,132.57,100.17]
[1718980534529,21.4915,132.71,132.6,100.0]
[1718980534723,27.5199,132.71,132.66,6.0302]
[1718980534925,6.0286,132.7,132.66,6.0302]
[1718980535232,6.1517,132.71,132.62,6.0319]
[1718980535538,6.0302,132.67,132.62,6.032]
[1718980535735,6.0297,132.68,132.63,6.0318]
[1718980535931,21.2223,132.71,132.55,52.8767]
[1718980535932,6.1517,132.71,132.56,100.0]
[1718980536122,6.0309,132.65,132.6,6.0328]
[1718980536523,15.0736,132.69,132.57,15.2562]
[1718980536524,6.0306,132.66,132.61,6.0327]
[1718980537124,6.0306,132.66,132.62,6.0322]
[1718980537446,6.0304,132.66,132.61,6.0325]
[1718980537642,6.0304,132.66,132.62,6.0322]
[1718980537843,6.0301,132.67,132.62,6.0322]
[1718980538034,6.1517,132.71,132.58,130.1693]
[1718980538249,12.1801,132.71,132.66,6.03]
[1718980538550,12.1801,132.71,132.62,115.0795]
[1718980538551,6.0286,132.7,132.65,6.0307]
[1718980540057,6.0286,132.7,132.62,15.0795]
[1718980540058,6.0286,132.7,132.66,6.0304]
[1718980540230,12.18,132.71,132.66,6.0304]
[1718980540544,6.0286,132.7,132.66,6.0304]
[1718980540743,6.0296,132.68,132.6,15.0827]
[1718980540920,6.0291,132.69,132.61,0.17]
[1718980541131,21.2231,132.71,132.61,15.0807]
[1718980541325,6.0307,132.66,132.59,15.0832]
[1718980541537,15.0728,132.69,132.62,6.032]
[1718980541751,6.0313,132.65,132.6,6.0329]
[1718980542644,6.0313,132.64,132.56,15.0872]
[1718980542962,6.032,132.63,132.58,6.0339]
[1718980543256,6.0323,132.62,132.57,6.0343]
[1718980543556,36.2013,132.67,132.56,100.0]
[1718980543738,51.0308,132.66,132.61,6.0326]
[1718980544127,16.2013,132.67,132.59,15.0831]
[1718980544633,6.0307,132.66,132.61,6.0324]
[1718980545038,6.0301,132.67,132.62,6.0319]
[1718980545461,6.0304,132.66,132.61,6.0326]
[1718980545758,15.0717,132.7,132.62,6.032]
[1718980545943,20.17,132.69,132.62,6.032]
[1718980546145,6.0301,132.67,132.62,6.032]
[1718980546456,6.0296,132.68,132.64,6.0309]
[1718980546652,6.0296,132.68,132.63,6.0316]
[1718980547153,20.0,132.69,132.62,15.0798]
[1718980547450,20.0,132.7,132.59,15.083]
[1718980547631,6.03,132.67,132.62,6.032]
[1718980547830,6.03,132.67,132.6,0.17]
[1718980547831,20.0,132.7,132.6,6.0329]
[1718980548031,15.0748,132.68,132.56,100.0]
[1718980548243,15.0748,132.68,132.61,6.0323]
[1718980548244,6.0305,132.66,132.61,6.0323]
[1718980548458,6.0305,132.66,132.62,6.0321]
[1718980548649,35.0717,132.7,132.63,6.0318]
[1718980548955,45.0,132.69,132.62,6.032]
[1718980549135,20.0,132.7,132.6,100.0]
[1718980549336,6.1517,132.71,132.6,100.0]
[1718980549337,6.1517,132.71,132.68,6.0292]
[1718980549538,6.1517,132.71,132.67,6.0298]
[1718980549850,6.1517,132.71,132.67,6.0297]
[1718980550036,12.1799,132.71,132.66,6.0302]
[1718980550347,6.1517,132.71,132.65,15.0765]
[1718980550655,6.1517,132.71,132.68,6.0295]
[1718980550854,12.1801,132.71,132.65,6.0305]
[1718980551154,6.1517,132.71,132.62,100.0]
[1718980551366,6.1517,132.71,132.67,6.0297]
[1718980551942,12.1798,132.71,132.67,6.0297]
[1718980552134,6.1517,132.71,132.67,6.0297]
[1718980552332,6.0286,132.7,132.65,6.0306]
[1718980552537,6.0286,132.7,132.65,6.0307]
[1718980552836,12.18,132.71,132.66,6.0304]
[1718980553045,6.0293,132.69,132.64,6.0312]
[1718980553231,6.0289,132.7,132.65,6.0306]
[1718980553431,6.0296,132.68,132.63,6.0316]
[1718980553653,6.1517,132.71,132.61,31.1944]
[1718980553956,6.0289,132.7,132.65,6.0306]
[1718980554133,6.1517,132.71,132.67,6.0298]
[1718980554333,12.1799,132.71,132.66,6.0302]
[1718980554559,6.0286,132.7,132.66,6.0302]
[1718980554736,6.0286,132.7,132.65,6.0306]
[1718980555144,6.0291,132.69,132.64,6.031]
[1718980555442,6.6149,132.79,132.69,100.0]
[1718980555646,12.6398,132.79,132.74,6.0266]
[1718980555843,6.025,132.78,132.73,6.027]
[1718980556357,6.0255,132.77,132.72,6.0275]
[1718980556544,6.0251,132.78,132.73,6.0271]
[1718980556750,6.6149,132.79,132.71,15.0699]
[1718980557060,12.6395,132.79,132.74,6.0266]
[1718980557436,6.025,132.78,132.73,6.027]
[1718980558364,6.6149,132.79,132.71,6.0279]
[1718980558365,6.0259,132.76,132.71,6.0279]
[1718980558564,6.0255,132.77,132.72,6.0273]
[1718980558731,6.0251,132.78,132.73,6.027]
[1718980558931,0.8580225,132.83,132.68,30.1465]
[1718980558932,6.0247,132.79,132.74,6.0264]
[1718980559151,15.0591,132.81,132.69,100.0]
[1718980559350,15.0591,132.81,132.7,35.2414]
[1718980559536,6.025,132.78,132.73,6.027]
[1718980559744,6.0255,132.77,132.72,6.0275]
[1718980559945,15.0591,132.81,132.7,35.2414]
[1718980559946,6.025,132.78,132.73,6.027]
[1718980560261,6.0252,132.78,132.73,6.0272]
[1718980560449,6.0254,132.78,132.72,6.0277]
[1718980560654,6.0254,132.78,132.68,0.17]
[1718980560655,15.059,132.82,132.71,15.0701]
[1718980560849,6.0236,132.81,132.76,6.0258]
[1718980561155,7.5057225,132.83,132.78,6.0247]
[1718980561156,13.5286225,132.83,132.78,6.0247]
[1718980561339,13.5286225,132.83,132.79,6.0245]
[1718980561545,6.0232,132.82,132.78,6.0248]
[1718980561757,7.5057225,132.83,132.76,6.0256]
[1718980561944,7.5057225,132.83,132.78,6.0248]
[1718980561945,6.0232,132.82,132.78,6.0248]
[1718980562138,6.0232,132.82,132.74,100.0]
[1718980562139,7.5057225,132.83,132.74,100.0]
[1718980562360,7.5057225,132.83,132.8,6.024]
[1718980562558,0.8580225,132.83,132.82,6.0231]
[1718980562754,0.8580225,132.83,132.76,100.0]
[1718980563067,0.8580225,132.83,132.81,6.0234]
[1718980563267,0.8580225,132.83,132.8,6.0239]
[1718980563635,6.0232,132.82,132.75,6.3856]
[1718980563868,0.8580225,132.83,132.76,0.17]
[1718980564156,0.8580225,132.83,132.8,6.024]
[1718980564376,0.8580225,132.83,132.76,15.4039]
[1718980564554,0.8580225,132.83,132.73,100.0]
[1718980564857,0.8580225,132.83,132.75,120.34]
[1718980565040,0.8580225,132.83,132.82,6.0231]
[1718980565240,0.8580225,132.83,132.82,6.1931]
[1718980565463,0.8580225,132.83,132.82,21.421]
[1718980565763,0.8580225,132.83,132.82,21.081]
[1718980565941,0.8580225,132.83,132.82,21.251]
[1718980566146,0.8580225,132.83,132.82,41.421]
[1718980567046,6.1098,132.93,132.87,15.0518]
[1718980567563,6.1098,132.93,132.89,6.0196]
[1718980567869,12.128,132.93,132.88,6.0202]
[1718980568248,6.1098,132.93,132.85,115.0543]
[1718980568446,6.1098,132.93,132.89,6.0197]
[1718980568642,6.1098,132.93,132.85,15.0543]
[1718980568857,6.1098,132.93,132.88,6.0201]
[1718980569063,12.128,132.93,132.88,6.0201]
[1718980569358,12.128,132.93,132.86,0.17]
[1718980569359,6.0192,132.91,132.86,6.0212]
[1718980569569,6.1098,132.93,132.83,100.0]
[1718980569882,6.0201,132.89,132.84,0.92440011]
[1718980570159,6.1098,132.93,132.81,100.0]
[1718980570339,20.0,132.92,132.84,15.0553]
[1718980570547,0.8580225,132.96,132.81,122.7]
[1718980570854,20.8580225,132.96,132.86,15.0525]
[1718980571049,6.018,132.94,132.89,6.0198]
[1718980571262,6.0182,132.93,132.88,6.0203]
[1718980571764,35.9012225,132.96,132.87,6.0208]
[1718980572076,6.0186,132.92,132.87,6.0207]
[1718980572238,6.0194,132.91,132.81,100.0]
[1718980572443,6.0188,132.92,132.87,6.0206]
[1718980572640,6.0193,132.91,132.86,6.0213]
[1718980572973,6.1115,132.91,132.81,15.059]
[1718980573163,65.34,132.9,132.8,30.147257]
[1718980573344,65.34,132.9,132.81,6.0233]
[1718980573345,6.0216,132.86,132.81,6.0233]
[1718980573767,6.021,132.87,132.82,6.0231]
[1718980574551,6.0216,132.86,132.79,15.061]
[1718980574774,6.0232,132.82,132.77,6.0251]
[1718980575141,15.5787,132.84,132.8,6.0239]
[1718980575346,15.5787,132.84,132.73,100.0]
[1718980575542,6.023,132.83,132.78,6.0247]
[1718980575756,21.6011,132.84,132.79,6.0244]
[1718980575951,21.6011,132.84,132.77,6.0253]
[1718980575952,6.0233,132.82,132.77,6.0253]
[1718980576162,15.5787,132.84,132.75,100.0]
[1718980576362,21.6009,132.84,132.79,6.0243]
[1718980576862,15.5787,132.84,132.81,6.0232]
[1718980577069,15.5787,132.84,132.78,15.0622]
[1718980577070,6.021,132.87,132.82,6.023]
[1718980577269,16.3634,132.88,132.79,15.0604]
[1718980577759,15.0498,132.9,132.82,6.0228]
[1718980577959,0.8580225,132.96,132.79,15.0604]
[1718980577960,6.0203,132.89,132.8,16.7037]
[1718980578158,6.0197,132.9,132.85,6.0215]
[1718980578760,6.1401,132.95,132.84,15.0555]
[1718980578761,15.0445,132.94,132.84,15.0555]
[1718980578956,6.1401,132.95,132.84,15.0555]
[1718980579162,6.1401,132.95,132.85,15.3935]
[1718980579370,6.018,132.94,132.89,6.0199]
[1718980579577,6.1401,132.95,132.91,6.019]
[1718980579750,12.1574,132.95,132.9,6.0193]
[1718980579951,6.018,132.94,132.89,6.0197]
[1718980580179,6.1401,132.95,132.87,15.0517]
[1718980580477,12.1575,132.95,132.9,6.0194]
[1718980580663,6.0177,132.94,132.89,6.0199]
[1718980580866,6.0182,132.93,132.88,6.0202]
[1718980581073,6.0186,132.92,132.87,6.0209]
[1718980581572,6.0187,132.92,132.85,15.0543]
[1718980581778,12.1575,132.95,132.9,6.0192]
[1718980582077,6.0178,132.94,132.89,6.0196]
[1718980582304,6.0179,132.94,132.89,6.0198]
[1718980582775,12.1575,132.95,132.9,6.0195]
[1718980582967,6.0177,132.94,132.87,15.0522]
[1718980583177,6.0177,132.94,132.89,6.0197]
[1718980583361,12.1574,132.95,132.9,6.0193]
[1718980583549,12.1574,132.95,132.87,15.0522]
[1718980583753,12.1577,132.95,132.9,6.0192]
[1718980583981,6.1401,132.95,132.86,0.17]
[1718980584278,6.1401,132.95,132.86,20.17]
[1718980584574,6.0182,132.93,132.88,6.0201]
[1718980584772,6.0182,132.93,132.85,15.0543]
[1718980584773,21.1843,132.95,132.87,6.0207]
[1718980585077,6.1401,132.95,132.86,15.0523]
[1718980585373,12.1574,132.95,132.9,6.0195]
[1718980585565,6.1401,132.95,132.87,100.0]
[1718980585764,6.1401,132.95,132.9,6.0193]
[1718980585969,12.1575,132.95,132.9,6.0193]
[1718980587566,6.018,132.94,132.89,6.0198]
[1718980587774,6.018,132.94,132.9,6.0195]
[1718980587967,6.1401,132.95,132.91,6.0188]
[1718980588168,6.1401,132.95,132.87,130.1035]
[1718980588364,6.1401,132.95,132.92,6.0185]
[1718980588689,6.1401,132.95,132.9,15.0487]
[1718980588873,6.1401,132.95,132.92,6.0184]
[1718980589285,6.1401,132.95,132.91,6.0189]
[1718980589826,6.1401,132.95,132.93,6.0181]
[1718980590000,6.1401,132.95,132.9,15.0489]
[1718980590159,6.1401,132.95,132.92,6.0184]
[1718980590671,6.1401,132.95,132.88,0.17]
[1718980590672,6.1401,132.95,132.91,6.0189]
[1718980590877,12.1574,132.95,132.91,6.0189]
[1718980591080,12.1574,132.95,132.9,6.0193]
[1718980591462,6.0178,132.94,132.86,15.0531]
[1718980591680,6.1401,132.95,132.87,35.0514]
[1718980591888,6.1401,132.95,132.91,6.019]
[1718980592206,6.1401,132.95,132.88,15.05]
[1718980592365,12.1574,132.95,132.9,6.0195]
[1718980592565,6.1401,132.95,132.87,20.0]
[1718980592772,6.1401,132.95,132.88,15.0501]
[1718980592966,6.1401,132.95,132.92,6.0184]
[1718980593391,6.1401,132.95,132.88,15.2201]
[1718980593596,6.1401,132.95,132.88,0.17]
[1718980593793,6.1401,132.95,132.9,6.0193]
[1718980593999,6.1401,132.95,132.87,20.0]
[1718980594173,6.1401,132.95,132.91,6.0189]
[1718980594379,6.1401,132.95,132.88,15.0503]
[1718980594575,6.1401,132.95,132.91,6.0189]
[1718980594898,0.8580225,132.96,132.93,6.0179]
[1718980595082,0.8580225,132.96,132.93,6.018]
[1718980595477,0.8580225,132.96,132.89,100.0]
[1718980595692,0.8580225,132.96,132.92,6.0186]
[1718980596104,0.8580225,132.96,132.93,6.0181]
[1718980596304,0.8580225,132.96,132.94,6.0176]
[1718980596479,0.8580225,132.96,132.93,6.018]
[1718980596684,0.8580225,132.96,132.93,6.0179]
[1718980597197,0.8580225,132.96,132.9,0.17]
[1718980597400,0.8580225,132.96,132.92,100.0]
[1718980597616,0.8580225,132.96,132.9,100.34]
[1718980597786,0.8580225,132.96,132.94,6.0176]
[1718980598398,0.8580225,132.96,132.93,6.0179]
[1718980598899,0.8580225,132.96,132.9,15.2185]
[1718980599202,0.8580225,132.96,132.93,6.0178]
[1718980599392,0.8580225,132.96,132.91,100.0]
[1718980599582,0.8580225,132.96,132.9,0.17]
[1718980599778,6.8749225,132.96,132.91,6.0188]
[1718980599978,0.8580225,132.96,132.89,15.0499]
[1718980600200,0.8580225,132.96,132.92,6.0184]
[1718980600390,0.8580225,132.96,132.93,6.0181]
[1718980600978,0.8580225,132.96,132.94,6.0174]
[1718980601177,0.8580225,132.96,132.95,6.0172]
[1718980601486,0.8580225,132.96,132.92,6.0184]
[1718980601899,0.8580225,132.96,132.93,6.0181]
[1718980602574,0.8580225,132.96,132.94,6.0177]
[1718980603009,0.8580225,132.96,132.94,6.0175]
[1718980603302,0.8580225,132.96,132.93,6.018]
[1718980603487,0.8580225,132.96,132.94,6.0177]
[1718980604300,0.8580225,132.96,132.93,6.018]
[1718980604605,0.8580225,132.96,132.89,115.0499]
[1718980604778,0.8580225,132.96,132.94,6.0177]
[1718980605206,0.8580225,132.96,132.94,6.0175]
[1718980605585,0.8580225,132.96,132.93,6.018]
[1718980605908,0.8580225,132.96,132.91,15.0476]
[1718980606078,6.8750225,132.96,132.91,6.0189]
[1718980607485,6.8751225,132.96,132.92,1.5016678]
[1718980607686,6.8751225,132.96,132.89,115.0499]
[1718980607687,0.8580225,132.96,132.89,115.0499]
[1718980607900,0.8580225,132.96,132.93,6.0178]
[1718980608406,0.8580225,132.96,132.94,6.0177]
[1718980608916,0.8580225,132.96,132.95,26.0172]
[1718980611401,0.8580225,132.96,132.95,26.1872]
[1718980611793,0.8580225,132.96,132.95,6.0172]
[1718980611998,0.8580225,132.96,132.94,6.0175]
[1718980612352,0.8580225,132.96,132.9,15.0488]
[1718980612516,0.8580225,132.96,132.94,6.0176]
[1718980612817,0.8580225,132.96,132.88,15.0508]
[1718980613002,0.8580225,132.96,132.88,21.613]
[1718980613190,0.8580225,132.96,132.91,15.0475]
[1718980613390,0.8580225,132.96,132.93,6.0179]
[1718980613929,0.8580225,132.96,132.94,15.0442]
[1718980614218,0.8580225,132.96,132.95,6.0172]
[1718980615295,0.8580225,132.96,132.95,6.1872]
[1718980616314,0.8580225,132.96,132.95,6.0172]
[1718980617330,0.8580225,132.96,132.87,157.23712504]
[1718980617515,0.8580225,132.96,132.89,100.0]
[1718980617912,0.8580225,132.96,132.93,6.0181]
[1718980618113,0.8580225,132.96,132.89,15.0499]
[1718980618327,0.8580225,132.96,132.91,6.0188]
[1718980618542,6.5655,132.95,132.91,6.0188]
[1718980618715,6.5655,132.95,132.89,15.0499]
[1718980618716,12.5829,132.95,132.9,6.0194]
[1718980618913,12.5829,132.95,132.9,6.0193]
[1718980619334,0.8580225,132.96,132.95,6.0172]
[1718980619884,7.3632225,132.96,132.9,15.0488]
[1718980620055,7.3632225,132.96,132.92,6.0184]
[1718980620217,13.3801225,132.96,132.91,6.0189]
[1718980620413,7.3632225,132.96,132.88,15.0508]
[1718980620715,7.3632225,132.96,132.91,15.0477]
[1718980620918,7.3632225,132.96,132.87,130.1035]
[1718980621139,7.3632225,132.96,132.93,6.018]
[1718980621349,7.3632225,132.96,132.9,100.0]
[1718980621517,0.8580225,132.96,132.95,6.0172]
[1718980621914,0.8580225,132.96,132.94,6.0175]
[1718980622133,0.8580225,132.96,132.9,100.0]
[1718980622334,0.8580225,132.96,132.86,106.5147]
[1718980622526,0.8580225,132.96,132.87,20.0]
[1718980622726,6.8751225,132.96,132.91,6.0188]
[1718980622929,0.8580225,132.96,132.93,6.0181]
[1718980623133,0.8580225,132.96,132.88,100.0]
[1718980623324,0.8580225,132.96,132.93,6.0178]
[1718980623524,0.8580225,132.96,132.94,6.0176]
[1718980623739,0.8580225,132.96,132.93,6.018]
[1718980623948,0.8580225,132.96,132.93,6.0179]
[1718980624457,0.8580225,132.96,132.94,6.0176]
[1718980624959,0.8580225,132.96,132.95,6.0172]
[1718980625335,0.8580225,132.96,132.9,15.0486]
[1718980625531,0.8580225,132.96,132.93,6.018]
[1718980626333,16.0543,132.94,132.89,6.0197]
[1718980626530,20.8580225,132.96,132.95,6.0172]
[1718980626531,0.8580225,132.96,132.95,6.0172]
[1718980627555,0.8580225,132.96,132.95,6.1872]
[1718980627750,0.8580225,132.96,132.95,6.0172]
[1718980630233,0.8580225,132.96,132.95,26.3572]
[1718980630431,0.8580225,132.96,132.95,26.0172]
[1718980630660,0.8580225,132.96,132.95,6.0172]
[1718980631442,0.8580225,132.96,132.95,6.1872]
[1718980631654,6.1405,133.03,133.02,6.0141]
[1718980631844,22.9277,133.06,133.03,6.0133]
[1718980632054,22.9277,133.06,133.02,6.0139]
[1718980632448,22.9277,133.06,132.95,0.34]